Cogmind - Beta 13 @@@ ROGUE MODE // 2024.04.15 @ 12:21:17 Player: Tuks Result: Destroyed by S-10 Pest with Light Assault Rifle Performance ------------- Evolutions (1) 500 Regions Visited (2) 400 Robots Destroyed (17) 85 Value Destroyed (518) 518 Prototype IDs (0) 0 Alien Tech Used (0) 0 Bonus (0) 0 TOTAL SCORE: 1503 Bonus ------- None Cogmind --------- Core Integrity 0/400 Matter 300/300 Energy 100/100 System Corruption 0% Temperature Cool (0) Movement Core (350) Ox6 Location -9/Materials Parts ------- > --- POWER (1) -------- (None) > --- PROPULSION (4) --- (None) > --- UTILITY (2) ------ Large Storage Unit > --- WEAPON (2) ------- (None) > --- INVENTORY (15) --- Ion Engine Large Storage Unit Targeting Computer Targeting Computer Assault Rifle Light Assault Rifle Light Assault Rifle Mining Claw Peak State ------------ > --- POWER ------------ Reinforced Ion Engine > --- PROPULSION ------- Aluminum Leg Aluminum Leg Aluminum Leg Aluminum Leg > --- UTILITY ---------- Large Storage Unit High-capacity Matter Pod > --- WEAPON ----------- EM Shotgun EM Shotgun > --- INVENTORY -------- Ion Engine Large Storage Unit Targeting Computer Targeting Computer Particle Cannon Assault Rifle Light Assault Rifle Light Assault Rifle Light Cannon Mining Claw [Rating: 13] Favorites ----------- Power Ion Engine Engine Ion Engine Propulsion Aluminum Leg Leg Aluminum Leg Utility High-capacity Matter Pod Storage High-capacity Matter Pod Weapon Light Assault Rifle Energy Gun EM Shotgun Energy Cannon Particle Cannon Ballistic Gun Light Assault Rifle Ballistic Cannon Light Cannon Build | -11 -10 -9 ------- Run | Yrd Mat Mat Slots Evolved 2 | . . 2 Power . | . . . Propulsion 2 | . . 2 Utility . | . . . Weapon . | . . . Parts Attached 24 | 6 7 11 Power 3 | 1 1 1 Engine 3 | 1 1 1 Core . | . . . Reactor . | . . . Propulsion 7 | 2 1 4 Treads . | . . . Leg 7 | 2 1 4 Wheel . | . . . Hover . | . . . Flight . | . . . Utility 7 | 1 5 1 Device . | . . . Storage 7 | 1 5 1 Processor . | . . . Hackware . | . . . Protection . | . . . Artifact . | . . . Weapon 7 | 2 . 5 Energy Gun 2 | . . 2 Energy Cannon 1 | . . 1 Ballistic Gun 2 | 2 . . Ballistic Cannon 2 | . . 2 Launcher . | . . . Special Weapon . | . . . Impact Weapon . | . . . Slashing Weapon . | . . . Piercing Weapon . | . . . Special Melee Weapon . | . . . Unidentified Prototypes . | . . . Parts Lost 10 | . . 10 Power 1 | . . 1 Propulsion 4 | . . 4 Utility 1 | . . 1 Weapon 4 | . . 4 Highest Loss Streak 5 | . . 5 To Critical Strikes 1 | . . 1 Average Slot Usage (%) 90 | . 98 82 Engine 11 | . 13 9 Leg 30 | . 28 32 Storage 24 | . 27 21 Energy Gun 6 | . . 12 Ballistic Gun 15 | . 28 1 Ballistic Cannon 1 | . . 2 Naked Turns . | . . . Heaviest Build 40 | 12 16 40 Greatest Support 40 | 20 20 40 Greatest Overweight (x) 3 | . . 3 Average Overweight (x) . | . . . Largest Inventory Capacity 15 | 8 15 15 Average Capacity 10 | 7 8 14 Most Carried 11 | 5 8 11 Average Carried 7 | 2 6 9 Final Capacity 15 | 8 8 15 Final Carried 8 | 2 8 8 Class Distribution -------------------- 100% | Mutant Dominant Class ---------------- Mutant | -10/Materials Mutant | -9/Materials Resources | -11 -10 -9 ----------- Run | Yrd Mat Mat Matter Collected 614 | 241 112 261 Remotely . | . . . Salvage Created 569 | . 112 457 Parts 29 | . 10 19 Haulers Intercepted . | . . . Recyclers Shooed 1 | . . 1 Parts Field Recycled . | . . . Retrieved Matter . | . . . Parts Self-Destructed . | . . . Prevented . | . . . Kills | -11 -10 -9 ------- Run | Yrd Mat Mat Combat Hostiles Destroyed 15 | . 4 11 Guns 9 | . 4 5 Cannons 5 | . . 5 AOE 1 | . . 1 Classes Destroyed 5 | . 2 3 Tunneler 1 | . . 1 Watcher 1 | . . 1 Swarmer 4 | . 2 2 Grunt 9 | . 2 7 Sentry 2 | . . 2 Best Kill Streak 4 | . 2 4 Combat Bots Only 4 | . 2 4 Max Kills in Single Turn 2 | . 2 2 Gunslinging 1 | . 1 . Exploded 1 | . . 1 Melee . | . . . Uniques/NPCs Destroyed . | . . . Combat | -11 -10 -9 -------- Run | Yrd Mat Mat Hostile Shots Fired 213 | . 30 183 Missed 58 | . 8 50 Damage Taken 1701 | . 304 1397 Core 466 | . 59 407 Absorbed by Shields . | . . . Regen/Repaired (Parts) 60 | . 17 43 Core Remaining (%) 88 | 100 76 . Volleys Fired 65 | . 20 45 Largest 2 | . 2 2 Hottest 90 | . 40 90 Shots Fired 101 | . 40 61 Gun 72 | . 40 32 Cannon 29 | . . 29 Launcher . | . . . Special . | . . . Kinetic 51 | . 40 11 Thermal 18 | . . 18 Explosive . | . . . Electromagnetic 32 | . . 32 Robot Hit Streak 11 | . 6 11 Robot Miss Streak 4 | . 4 4 Penetration Max . | . . . Secondary Targets 1 | . 1 . Max Gunslinging Chain 1 | . 1 . Shots Hit Robots 66 | . 22 44 Core Hits 34 | . 12 22 Critical Kills . | . . . Critical Parts Destroyed . | . . . Critical Strikes . | . . . Melee Attacks . | . . . Impact . | . . . Slashing . | . . . Piercing . | . . . Sneak Attacks . | . . . Combat Hostiles . | . . . Follow-up Attacks . | . . . Damage Inflicted 1264 | . 209 1055 Guns 652 | . 209 443 Cannons 390 | . . 390 Explosions 185 | . . 185 Melee . | . . . Ramming 37 | . . 37 Kinetic 332 | . 209 123 Thermal 452 | . . 452 Explosive . | . . . Electromagnetic 443 | . . 443 Impact . | . . . Slashing . | . . . Piercing . | . . . Highest Corruption . | . . . Average Corruption . | . . . Corruption Purged . | . . . Corruption Blocked . | . . . Overload Shots . | . . . Overflow Damage 30 | . . 30 Projectiles 2 | . . 2 Explosions 28 | . . 28 Melee . | . . . Knockbacks 4 | . . 4 Impact . | . . . Kinetic 2 | . . 2 Secondary 2 | . . 2 Self-Inflicted Damage 104 | . . 104 Shots 3 | . . 3 Rammed . | . . . Targets Rammed 5 | . . 5 Kicked 5 | . . 5 Crushed . | . . . Highest Temperature 348 | . 34 348 Average Temperature 120 | . 19 135 Received Heat Transfer 354 | . 90 264 Effects 3 | . . 3 Energy Bleed 3 | . . 3 Siege Activations . | . . . Robots Corrupted . | . . . Combat Hostiles . | . . . Parts Fried . | . . . Impact Corruptions . | . . . Robots Melted . | . . . Combat Hostiles . | . . . Parts Melted 1 | . . 1 Heat Transferred 731 | . . 731 Parts Sabotaged . | . . . Parts Stolen . | . . . Parts Stripped . | . . . Power Chain Reactions 3 | . . 3 Alert | -11 -10 -9 ------- Run | Yrd Mat Mat Peak Influence 150 | . 85 150 Initial 35 | . . 35 Average 46 | . 28 72 Maximum Alert Level . | . . . Low Security (%) 100 | 100 100 100 Level 1 . | . . . Level 2 . | . . . Level 3 . | . . . Level 4 . | . . . Level 5 . | . . . High Security . | . . . Max Security . | . . . Squads Dispatched 2 | . . 2 Investigation 1 | . . 1 Extermination . | . . . Reinforcement 1 | . . 1 Assault . | . . . Garrison . | . . . Intercept . | . . . Searches Triggered . | . . . Construction Impeded . | . . . Haulers Reinforced . | . . . Active Scanning Responses . | . . . Cargo Convoy Interrupts . | . . . Stealth | -11 -10 -9 --------- Run | Yrd Mat Mat Distress Signals 3 | . . 3 Communications Jammed . | . . . Distress Signals . | . . . Times Spotted 37 | . 10 27 Peak Tracking Total 9 | . 4 9 Tactical Retreats 2 | . 1 1 Traps | -11 -10 -9 ------- Run | Yrd Mat Mat Traps Triggered 2 | . 2 . Indirectly . | . . . Trap Hack Attempts . | . . . Triggered . | . . . Disarmed . | . . . Reprogrammed . | . . . Reused . | . . . Traps Extracted . | . . . Installed . | . . . Triggered . | . . . Machines | -11 -10 -9 ---------- Run | Yrd Mat Mat Machines Disabled 2 | . . 2 Max in Single Turn 1 | . . 1 Machines Repaired . | . . . Machines Dismantled . | . . . Machines Sabotaged . | . . . Overloaded Fab Kills . | . . . Hacking | -11 -10 -9 --------- Run | Yrd Mat Mat Machines Accessed 10 | . 3 7 Terminals 7 | . 2 5 Fabricators . | . . . Repair Stations 3 | . 1 2 Recycling Units . | . . . Scanalyzers . | . . . Garrison Access . | . . . Total Hacks 24 | . 8 16 Successful 18 | . 7 11 Failed 6 | . 1 5 Catastrophic 2 | . . 2 Database Lockouts . | . . . Manual . | . . . Terminals 15 | . 4 11 Fabricators . | . . . Repair Stations 9 | . 4 5 Recycling Units . | . . . Scanalyzers . | . . . Garrison Access . | . . . Terminal Hacks 10 | . 3 7 Record 3 | . . 3 Unreport Threat 1 | . . 1 Dispatch Records 1 | . 1 . Maintenance Status 1 | . . 1 Recall Reinforcements 1 | . . 1 Zone Layout 3 | . 2 1 Fabricator Hacks . | . . . Repair Station Hacks 8 | . 4 4 Scan Component 4 | . 2 2 Repair 4 | . 2 2 Recycling Unit Hacks . | . . . Scanalyzer . | . . . Garrison Access Hacks . | . . . Unauthorized Hacks . | . . . Terminals . | . . . Fabricators . | . . . Repair Stations . | . . . Recycling Units . | . . . Scanalyzers . | . . . Garrison Access . | . . . Data Cores Recovered . | . . . Used . | . . . Hacking Detections 5 | . 2 3 Full Trace Events 2 | . 1 1 Feedback Events . | . . . Feedback Blocked . | . . . Robot Schematics Acquired . | . . . Robots Built . | . . . Authchips . | . . . Time . | . . . Total Robot Build Rating . | . . . Part Schematics Acquired . | . . . Parts Built . | . . . Authchips . | . . . Time . | . . . Total Part Build Rating . | . . . Parts Repaired 4 | . 2 2 Time 104 | . 52 52 Parts Recycled . | . . . Recycled Matter . | . . . Retrieved Matter . | . . . Retrieved Components . | . . . Parts Scanalyzed . | . . . Part Schematics Acquired . | . . . Parts Damaged . | . . . Bothacking | -11 -10 -9 ------------ Run | Yrd Mat Mat Used RIF Installer . | . . . Robots Hacked . | . . . Non-combat . | . . . Combat . | . . . Robot Hacks Applied . | . . . Relay Couplers Released . | . . . Fabnet Peak Effective % . | . . . Robots Rewired . | . . . Allies Hacked . | . . . Hacks Repelled . | . . . Allies | -11 -10 -9 -------- Run | Yrd Mat Mat Total Allies . | . . . Largest Group . | . . . Highest-Rated Group . | . . . Highest-Rated Ally . | . . . Total Orders . | . . . Ally Attacks . | . . . Total Damage . | . . . Kills . | . . . Allies Corrupted . | . . . Allies Melted . | . . . Intel | -11 -10 -9 ------- Run | Yrd Mat Mat Robot Analysis Total . | . . . Derelict Logs Recovered . | . . . Drone Launches . | . . . Drone Recoveries . | . . . Exploration | -11 -10 -9 ------------- Run | Yrd Mat Mat Turns Passed 1151 | 73 557 521 Spaces Moved 634 | 40 371 223 Core 10 | 10 . . Treads . | . . . Legs 624 | 30 371 223 Wheels . | . . . Hover . | . . . Flight . | . . . Fastest Speed 50 | 50 120 120 Average Speed 121 | 102 120 126 Slowest Speed 330 | 120 120 330 Overloaded Moves . | . . . Propulsion Burnouts . | . . . Robots Hopped . | . . . Cave-ins Triggered . | . . . Exploration Rate (%) 27 | 3 55 24 Regions Visited 2 Branch Regions . Pre-discovered Areas . | . . . Known Exits Taken . | . . . Unknown Exits Taken 2 | 1 1 . Scrap Searched . | . . . Spaces Dug . | . . . Terrain Destroyed 20 | . . 20 Melee . | . . . Projectile . | . . . AOE 20 | . . 20 Terrain Rammed . | . . . Walls Destroyed . | . . . Machines Disabled . | . . . Actions | -11 -10 -9 --------- Run | Yrd Mat Mat Total 921 | 72 453 396 Wait 156 | 19 37 100 Move 632 | 39 370 223 Hop . | . . . Pick Up 31 | 8 14 9 Fast Attach . | . . . Attach 14 | 6 2 6 Detach . | . . . Swap 10 | . 5 5 Drop 8 | . 5 3 Fire 65 | . 20 45 Melee . | . . . Ram . | . . . Kick 5 | . . 5 Crush . | . . . Escape Stasis . | . . . Rewire . | . . . Trap . | . . . Miscellaneous . | . . . Route ------- -11/Scrapyard -10/Materials (discovered 3 exits: *Mat / [*Min x2]) -9/Materials History --------- Turn | Location | Event 2 | -11/Scrapyard | Met Revision 17 10 | -11/Scrapyard | Discovered new exit (range 14) 74 | -11/Scrapyard | Entered Materials 308 | -10/Materials | Discovered new exit (range 15) 310 | -10/Materials | Discovered new exit (range 13) 315 | -10/Materials | Build established: Mutant 411 | -10/Materials | Repaired Aluminum Leg 437 | -10/Materials | Repaired Ion Engine 458 | -10/Materials | Discovered new exit (range 9) 631 | -10/Materials | Entered another Materials area 631 | -9/Materials | Evolved 2 slots: Propulsion x2 743 | -9/Materials | Repaired Aluminum Leg 769 | -9/Materials | Repaired Aluminum Leg 1035 | -9/Materials | Lost 3 parts (1n2w) 1076 | -9/Materials | Core integrity fell below 50% 1102 | -9/Materials | Lost 5 parts (1p3n1w) 1128 | -9/Materials | Core integrity fell below 20% 1152 | -9/Materials | Destroyed by S-10 Pest with Light Assault Rifle Last Messages --------------- Destroyed Lgt. Assault Rifle. K-01 Serf collects debris. Particle Cannon destroyed. R-06 Scavenger collects Aluminum Leg. K-01 Serf collects debris. R-06 Scavenger collects Aluminum Leg. K-01 Serf collects debris. O-16 Technician: "IFF HANDSHAKE FAILED. SECURING TERMINAL." K-01 Serf collects debris. R-06 Scavenger collects Sml. Laser. K-01 Serf collects debris. R-06 Scavenger collects Flight Unit. K-01 Serf collects debris. R-06 Scavenger collects Imp. Heat Sink. R-06 Scavenger collects Lgt. Ion Engine. Critical hit (Destroy). Hcp. Matter Pod destroyed. ALERT: Hostiles spotted, dispatching reinforcements to Terminal M005. Map ----- +----------------------------------------------------+ | ?????????????????????????????????????????????????? | | ?????????????????????????????????????????????????? | | ?????????????????????????????????????????????????? | | ?????????????????????????????????????????????????? | | ?????????????????????????????????????????????????? | | ?????????????????????????????????????????????????? | | ?????????????????????????????????????????????????? | | ?????????????????????????????????????????????????? | | ?????????????????????????????????????????????????? | | ?????????????????????????????????????????????????? | | ??????????????????????????? ?????????????????????? | | ??????????????????????????? ???????????????????? | | ?????????????????? ???????? #?????????????????? | | ?????????????????? ??????? # #???????????? | | ?????????????????? ????? //[# #???????????? | | ??????????????????" ????? //[# """ #???????????? | | ????????????????""" ????? /[[# """ #???????????? | | ????????????????""" ?"""" # """ ############? | | ??????????# ????""" ^""""" # """ ## """"" #? | | ??????????# """"" """"" # ## """"" #? | | ??????????# """"" """"" ###+#### """"" #? | | ??????????# """"% """"" # #? | | ???????? # + #? | | ????????? + k % # #? | | ??????????# %% ###+#### #? | | ??????????# w s%@ # ## #? | | ???????#### ######### ############# | | ?????? "####???# #?????# """ | | ?????? #####???# #?????# "T" | | ?????? !##??# #?????# | | ?????? #### ##??# #?????# | | ?????? # ##%##??# #???#######+# | | ???????############ #?## ##??#######???# | | ??????????????????# #??# ###########???# ##### # | | ??????????????????+ #??# #???# #???# # | | ??????????????????# #??#########+#%#???# #???# # | | ??????????????????# #????# #[#???# #???# # | | ??????????????????# #????#""" # #???# #???# | | ??????????????????# #????#""" # ##??# #???# | | ??????????????????# ?????#""" " "#??# #???# | | ??????????????????# ?????# #%"#??# #???# | | ??????????????????# ?????#########/"####+###?# | | ??????????????????# ????????????# # ##### | | ??????????????????# ????????????#"" """ # T #? | | ??????????????????# ????????????#"" """ #?????? | | ??????????????????? ????????????#"T """ #?????? | | ??????????????????????????????????#"" #?????? | | ????????????????????????#########?#"" """ /?????? | | ????????????????????????# #?# """ #?????? | | ????????????????????????# #?# """ #?????? | +----------------------------------------------------+ Best States ------------- Heat Dissipation 28 Energy Generation 12 Energy Capacity 265 Matter Stores 453 Matter Capacity 500 Sight Range 16 Terrain Scan Density 10 Evasion (%) 55 Item Schematics ----------------- None Robot Schematics ------------------ None Fabricated ------------ Nothing Alien Tech Used ----------------- None Achievements -------------- None Challenges ------------ None Game ------ Seed DiametricCooledGun Manual? 0 Play Time 00:21:00 Cumulative 2.7 hours Start 2024.04.15 @ 12:03:28 End 2024.04.15 @ 12:21:17 Sessions 1 Manual Loads 0 Difficulty Rogue Special Mode None Game No. 6 Rogue 6 Adventurer 0 Explorer 0 Win Type - Total 0 Types 0/0/0/0/0/0/0/0/0 Lore% 2 Gallery% 6 Achievement% 6 Wizard Run 0 Options --------- Layout 1 ASCII 0 Keyboard 0 Movement Mouse Keybinds 0 Fullscreen 2 Font 24/Crisp Map View 50x35 Zoom Use 0% Tactical HUD 0 Map Filters NONE Filters NONE Steam 1 RUN: 06143d41-413a-4b73-b869-202e4d67b335